bitfinex/quotes_SOLUSD_20240612
["timestamp","ask_amount","ask_price","bid_price","bid_amount"]
[1718169645168,8.43,151.0,150.98,2.4505]
[1718169645480,8.43,151.01,150.98,2.4505]
[1718169645663,8.43,151.01,150.99,2.4504]
[1718169646857,8.43,151.01,151.0,2.4503]
[1718169647052,8.43,151.01,150.99,2.4504]
[1718169647277,2.4498,151.03,150.99,2.4504]
[1718169647465,8.43,151.01,150.99,2.4504]
[1718169651686,8.43,151.01,151.0,2.4503]
[1718169651888,2.4497,151.04,151.0,2.4503]
[1718169652096,8.43,151.01,151.0,2.4503]
[1718169654796,8.43,151.01,150.99,2.4503]
[1718169657404,8.43,151.01,151.0,2.4503]
[1718169657785,8.43,151.01,150.99,2.4504]
[1718169658087,8.43,151.01,151.0,2.4503]
[1718169660088,8.43,151.01,150.99,2.4504]
[1718169660474,8.43,151.01,150.98,2.4506]
[1718169660674,8.43,150.99,150.93,14.708]
[1718169660894,8.43,150.97,150.94,2.4511]
[1718169661075,10.8811,150.95,150.91,2.4516]
[1718169661280,8.43,150.93,150.9,2.4518]
[1718169661580,8.43,150.92,150.89,2.452]
[1718169661893,8.43,150.9,150.88,2.4521]
[1718169662093,8.43,150.89,150.88,2.4521]
[1718169662301,8.43,150.89,150.8,38.96449912]
[1718169662302,8.43,150.89,150.8,22.6891]
[1718169662471,8.43,150.86,150.8,22.6891]
[1718169662798,8.43,150.87,150.85,2.4527]
[1718169662994,8.43,150.87,150.86,2.4526]
[1718169663186,8.43,150.87,150.85,2.4527]
[1718169663381,35.2541,150.92,150.82,4.9063]
[1718169663382,35.2541,150.92,150.83,4.906]
[1718169663590,2.4518,150.91,150.86,2.4524]
[1718169663775,8.43,150.88,150.86,2.4524]
[1718169663979,8.43,150.87,150.85,2.4526]
[1718169664187,8.43,150.86,150.85,2.4526]
[1718169664998,2.452,150.9,150.85,2.4526]
[1718169666696,60.5741,150.92,150.82,14.7189]
[1718169666697,2.4518,150.91,150.86,2.4525]
[1718169667590,2.4519,150.9,150.86,2.4525]
[1718169668098,2.4519,150.9,150.85,2.4527]
[1718169668507,2.4521,150.89,150.84,2.4528]
[1718169668716,2.4522,150.88,150.81,0.17]
[1718169669013,2.4522,150.88,150.83,2.453]
[1718169669387,2.4522,150.88,150.84,2.4529]
[1718169670603,2.4521,150.89,150.84,2.4529]
[1718169670990,2.452,150.9,150.81,9.8135]
[1718169671185,2.452,150.9,150.82,13.59202153]
[1718169671493,2.452,150.9,150.86,2.4525]
[1718169672008,2.452,150.9,150.85,2.4527]
[1718169672507,2.4521,150.89,150.85,2.4527]
[1718169673491,15.3641,150.92,150.83,7.3591]
[1718169673796,17.8158,150.92,150.87,2.4523]
[1718169674503,2.4519,150.9,150.86,2.4525]
[1718169675495,2.4519,150.9,150.85,2.4526]
[1718169676592,2.4519,150.9,150.86,2.4525]
[1718169677101,2.4518,150.91,150.86,2.4525]
[1718169677591,2.4518,150.91,150.87,2.4524]
[1718169678108,2.4518,150.91,150.86,2.4525]
[1718169678713,2.4519,150.9,150.86,2.4525]
[1718169678911,2.4522,150.88,150.84,2.4528]
[1718169679413,45.21,150.89,150.8,22.6891]
[1718169679591,4.9046,150.88,150.81,2.4533]
[1718169680107,2.4526,150.86,150.82,2.4532]
[1718169680505,20.06,150.87,150.79,4.9072]
[1718169680693,2.4528,150.85,150.81,2.4533]
[1718169681210,2.4525,150.87,150.83,2.453]
[1718169682099,45.21,150.89,150.83,2.453]
[1718169682796,2.4525,150.87,150.83,2.453]
[1718169684115,2.4526,150.86,150.82,2.4531]
[1718169685503,2.4528,150.85,150.81,2.4533]
[1718169686034,2.4526,150.86,150.82,2.4532]
[1718169686198,19.89,150.88,150.8,17.1746]
[1718169686516,2.4526,150.86,150.82,2.4531]
[1718169686894,8.44,150.84,150.82,2.4531]
[1718169687115,2.4526,150.86,150.82,2.4531]
[1718169687422,8.44,150.84,150.82,2.4531]
[1718169688709,8.44,150.84,150.83,2.453]
[1718169688912,8.44,150.84,150.82,2.4531]
[1718169689098,2.4526,150.86,150.82,2.4531]
[1718169689303,8.44,150.84,150.82,2.4531]
[1718169689731,8.44,150.83,150.81,2.4533]
[1718169689909,8.44,150.83,150.8,2.4534]
[1718169690624,8.44,150.82,150.8,2.4534]
[1718169691334,8.44,150.81,150.76,27.732]
[1718169691505,24.796,150.84,150.76,22.8238]
[1718169691709,8.44,150.8,150.79,2.4537]
[1718169692009,8.44,150.8,150.78,2.4538]
[1718169692208,8.44,150.8,150.76,27.7321]
[1718169692209,8.44,150.8,150.79,2.4537]
[1718169693123,8.44,150.8,150.78,2.4538]
[1718169693521,8.44,150.8,150.77,2.4539]
[1718169693835,8.44,150.79,150.78,2.4538]
[1718169695136,8.44,150.79,150.77,2.4539]
[1718169695336,8.44,150.78,150.76,2.4541]
[1718169695533,8.44,150.77,150.76,2.4541]
[1718169697536,8.44,150.77,150.74,2.4545]
[1718169697833,2.4539,150.78,150.74,2.4545]
[1718169697834,8.44,150.75,150.74,2.4545]
[1718169698034,8.44,150.75,150.73,2.9546]
[1718169698626,8.44,150.75,150.74,2.4545]
[1718169699635,8.44,150.75,150.73,2.9546]
[1718169700831,8.44,150.74,150.73,2.9546]
[1718169702745,19.89,150.79,150.75,2.4543]
[1718169702939,8.44,150.76,150.75,2.4543]
[1718169703845,8.44,150.76,150.73,0.5]
[1718169704023,8.44,150.74,150.73,2.9546]
[1718169704428,8.44,150.74,150.73,0.5]
[1718169705538,8.44,150.74,150.73,2.9547]
[1718169708941,10.8945,150.74,150.73,0.5]
[1718169709522,8.44,150.74,150.73,0.5]
[1718169710349,10.8945,150.74,150.73,0.5]
[1718169710924,8.44,150.74,150.73,0.5]
[1718169711352,10.8945,150.74,150.73,0.5]
[1718169714930,2.4544,150.75,150.73,0.5]
[1718169715150,8.44,150.74,150.73,0.5]
[1718169715852,10.8945,150.74,150.73,0.5]
[1718169721536,8.44,150.74,150.73,0.5]
[1718169721853,10.8945,150.74,150.73,0.5]
[1718169724846,4.9078,150.78,150.73,0.5]
[1718169725157,2.454,150.78,150.73,0.5]
[1718169725367,8.44,150.77,150.74,2.4544]
[1718169725669,8.44,150.76,150.73,2.9546]
[1718169725835,10.8942,150.76,150.73,2.9546]
[1718169726040,8.44,150.75,150.73,0.5]
[1718169726237,8.44,150.75,150.73,2.9546]
[1718169726850,8.44,150.76,150.74,2.4545]
[1718169727255,8.44,150.76,150.73,2.9546]
[1718169728254,8.44,150.75,150.73,2.9546]
[1718169730563,8.44,150.75,150.74,2.4545]
[1718169730748,8.44,150.76,150.74,2.4545]
[1718169731661,18.2157,150.8,150.76,2.4541]
[1718169731854,8.44,150.78,150.76,2.4541]
[1718169732967,8.44,150.78,150.75,2.4543]
[1718169733681,10.8939,150.78,150.75,2.4543]
[1718169734359,8.44,150.78,150.75,2.4543]
[1718169735449,10.8939,150.78,150.74,2.4544]
[1718169735649,8.44,150.76,150.74,2.4544]
[1718169736276,8.44,150.76,150.75,2.4543]
[1718169736778,8.44,150.77,150.76,2.454]
[1718169737272,8.44,150.78,150.76,2.454]
[1718169738061,8.44,150.77,150.76,2.454]
[1718169738365,8.44,150.77,150.75,2.4543]
[1718169738563,8.44,150.77,150.74,2.4544]
[1718169738871,8.44,150.77,150.75,2.4543]
[1718169741367,8.44,150.77,150.76,2.4542]
[1718169741866,2.4536,150.8,150.76,2.4542]
[1718169742172,8.44,150.78,150.76,2.4542]
[1718169742358,2.4536,150.8,150.76,2.4542]
[1718169742853,2.4533,150.82,150.76,4.9083]
[1718169743057,2.4531,150.83,150.79,2.4536]
[1718169743365,8.44,150.81,150.79,2.4536]
[1718169744048,8.44,150.81,150.78,2.4538]
[1718169744249,8.44,150.8,150.79,2.4537]
[1718169744654,2.4531,150.83,150.79,2.4537]
[1718169744849,2.4531,150.83,150.8,2.4535]
[1718169745154,8.44,150.81,150.8,2.4535]
[1718169745462,8.44,150.82,150.8,2.4535]
[1718169746554,14.7148,150.87,150.81,2.4534]
[1718169746761,2.4525,150.87,150.83,2.453]
[1718169746968,8.44,150.86,150.83,2.453]
[1718169747567,2.4525,150.87,150.83,2.453]
[1718169747766,8.44,150.86,150.83,2.453]
[1718169748078,8.44,150.85,150.82,2.4531]
[1718169751672,2.4524,150.87,150.83,2.453]
[1718169751879,8.44,150.85,150.83,2.453]
[1718169752878,8.44,150.85,150.82,2.4531]
[1718169753774,8.44,150.85,150.83,2.453]
[1718169755763,8.44,150.85,150.82,2.4531]
[1718169756069,10.8927,150.85,150.82,2.4531]
[1718169756273,8.44,150.84,150.82,2.4531]
[1718169757381,8.44,150.85,150.83,2.453]
[1718169758185,8.44,150.85,150.82,2.4531]
[1718169758864,8.44,150.85,150.81,2.4533]
[1718169759057,19.91,150.86,150.76,11.1396]
[1718169759260,8.44,150.8,150.78,2.4538]
[1718169759469,8.44,150.79,150.78,2.4538]
[1718169759679,8.44,150.8,150.78,2.4538]
[1718169760882,37.0795,150.85,150.74,4.9089]
[1718169760883,8.44,150.79,150.74,4.9089]
[1718169761069,8.44,150.79,150.77,2.454]
[1718169761468,8.44,150.79,150.78,2.4539]
[1718169761686,8.44,150.8,150.79,2.4536]
[1718169761888,8.44,150.81,150.79,2.4536]
[1718169762803,18.8849,150.83,150.79,2.4536]
[1718169762979,8.44,150.81,150.79,2.4536]
[1718169763892,8.44,150.82,150.8,2.4535]
[1718169764287,8.44,150.82,150.79,2.4536]
[1718169765792,8.44,150.82,150.73,0.5]
[1718169765987,29.7222,150.84,150.77,2.4539]
[1718169765988,24.8159,150.84,150.77,2.4539]
[1718169766299,8.44,150.8,150.77,2.4539]
[1718169766481,8.44,150.8,150.78,2.4538]
[1718169766684,2.4533,150.82,150.78,2.4538]
[1718169766989,8.44,150.81,150.78,2.4538]
[1718169768575,8.44,150.81,150.79,2.4537]
[1718169768777,2.453,150.84,150.8,2.4535]
[1718169768995,8.44,150.82,150.8,2.4535]
[1718169769888,8.44,150.82,150.79,2.4536]
[1718169771001,8.44,150.83,150.78,4.9077]
[1718169771182,8.44,150.84,150.81,2.4533]
[1718169771588,2.4528,150.85,150.81,2.4533]
[1718169771901,8.44,150.85,150.82,2.4531]
[1718169772103,2.4526,150.86,150.82,2.4531]
[1718169772598,8.44,150.85,150.82,2.4531]
[1718169772903,8.44,150.85,150.8,4.907]
[1718169772904,28.0171,150.91,150.81,4.9067]
[1718169773205,2.4521,150.89,150.85,2.4526]
[1718169773499,8.44,150.89,150.87,2.4524]
[1718169773705,2.4519,150.9,150.86,2.4525]
[1718169774003,8.44,150.89,150.86,2.4525]
[1718169777104,2.4518,150.91,150.87,2.4523]
[1718169777404,2.4516,150.92,150.88,2.4522]
[1718169777582,8.44,150.91,150.88,2.4522]
[1718169777982,10.8918,150.91,150.88,2.4522]
[1718169778383,2.4518,150.91,150.88,2.4522]
[1718169778601,10.8918,150.91,150.88,2.4522]
[1718169779088,2.4518,150.91,150.87,2.4523]
[1718169779412,8.44,150.92,150.86,18.2502]
[1718169779617,8.44,150.92,150.89,2.4521]
[1718169779791,10.8916,150.92,150.88,2.4521]
[1718169780405,2.4517,150.91,150.88,2.4521]
[1718169781092,10.8917,150.92,150.88,2.4521]
[1718169781999,2.4518,150.91,150.88,2.4521]
[1718169782208,2.4518,150.91,150.87,2.4523]
[1718169782408,10.8918,150.91,150.87,2.4523]
[1718169783513,2.4519,150.9,150.86,2.4525]
[1718169783683,10.8921,150.89,150.85,2.4526]
[1718169784092,2.4523,150.88,150.84,8.6602]
[1718169784299,8.44,150.88,150.85,2.4527]
[1718169785417,8.44,150.88,150.86,2.4525]
[1718169785617,8.44,150.89,150.86,2.4525]
[1718169785821,2.452,150.9,150.86,2.4525]
[1718169785994,8.44,150.9,150.84,6.2074]
[1718169786191,2.4517,150.92,150.88,2.4522]
[1718169786499,8.44,150.91,150.88,2.4522]
[1718169787195,10.8918,150.91,150.88,2.4522]
[1718169788517,10.8918,150.91,150.87,2.4523]
[1718169789601,12.2566,150.94,150.84,13.5659]
[1718169789602,10.8919,150.9,150.86,2.4525]
[1718169790122,8.44,150.9,150.87,2.4524]
[1718169790619,10.8919,150.9,150.87,2.4524]
[1718169790919,8.44,150.9,150.87,2.4524]
[1718169791593,10.8919,150.9,150.87,2.4524]
[1718169792020,2.4521,150.89,150.85,2.4526]
[1718169792221,10.8921,150.89,150.85,2.4526]
[1718169792513,8.44,150.86,150.8,2.4534]
[1718169792720,12.2624,150.87,150.8,2.4534]
[1718169792721,8.44,150.83,150.8,2.4534]
[1718169793620,8.44,150.84,150.8,2.4534]
[1718169793994,8.44,150.84,150.79,4.9074]
[1718169794303,8.44,150.84,150.82,2.4532]
[1718169795914,2.4526,150.86,150.82,2.4532]
[1718169796103,8.44,150.84,150.81,2.4533]
[1718169797120,8.44,150.84,150.82,2.4532]
[1718169797296,8.44,150.85,150.82,2.4532]
[1718169797621,8.44,150.85,150.83,2.453]
[1718169798696,8.44,150.85,150.82,2.4532]
[1718169799121,10.8927,150.85,150.81,2.4533]
[1718169800404,8.44,150.84,150.81,2.4533]
[1718169801620,8.44,150.84,150.82,2.4532]
[1718169802222,8.44,150.84,150.78,6.3218]
[1718169802433,8.44,150.83,150.8,2.4535]
[1718169805700,2.4531,150.83,150.8,2.4535]
[1718169805900,8.44,150.82,150.8,2.4535]
[1718169806100,8.44,150.82,150.79,2.4536]
[1718169806317,8.44,150.81,150.79,2.4536]
[1718169806515,8.44,150.81,150.8,2.4535]
[1718169808502,8.44,150.81,150.78,2.4538]
[1718169808703,8.44,150.81,150.79,2.4537]
[1718169810512,8.44,150.81,150.8,2.4535]
[1718169811225,8.44,150.81,150.79,2.4536]
[1718169812109,8.44,150.81,150.77,4.9079]
[1718169812110,8.44,150.81,150.78,2.4538]
[1718169812314,8.44,150.8,150.78,2.4538]
[1718169813106,15.8013,150.79,150.71,2.4549]
[1718169813307,8.44,150.76,150.73,2.9546]
[1718169813631,8.44,150.77,150.74,2.4545]
[1718169814150,8.44,150.76,150.73,2.9546]
[1718169814910,10.8943,150.76,150.73,0.5]
[1718169815114,12.2689,150.79,150.73,0.5]
[1718169815115,8.44,150.75,150.73,0.5]
[1718169815928,8.44,150.76,150.74,2.4545]
[1718169816230,8.44,150.76,150.73,0.5]
[1718169816231,8.44,150.76,150.73,2.9546]
[1718169817729,8.44,150.75,150.73,0.5]
[1718169818611,8.44,150.74,150.73,0.5]
[1718169821708,53.5754,150.74,150.73,0.5]
[1718169821907,2.4549,150.72,150.67,2.4556]
[1718169822110,8.44,150.7,150.67,2.4556]
[1718169822304,8.44,150.7,150.68,2.4555]
[1718169822714,9.8167,150.77,150.68,2.4555]
[1718169822715,5.30326134,150.79,150.68,9.8217]
[1718169822905,8.44,150.75,150.7,4.9102]
[1718169823108,8.44,150.76,150.7,13.3502]
[1718169823327,8.44,150.76,150.73,2.4546]
[1718169823527,8.44,150.76,150.72,2.4548]
[1718169823917,8.44,150.75,150.72,2.4548]
[1718169824423,8.44,150.73,150.66,6.1186]
[1718169824624,2.4544,150.75,150.7,2.4552]
[1718169824817,8.44,150.73,150.7,2.4552]
[1718169827730,8.44,150.73,150.69,2.4552]
[1718169828335,10.8947,150.73,150.68,2.4554]
[1718169828545,8.44,150.72,150.68,2.4554]
[1718169829543,8.44,150.71,150.68,2.4554]
[1718169830251,8.44,150.71,150.66,14.5586]
[1718169830252,8.44,150.71,150.69,2.4553]
[1718169830543,8.44,150.72,150.69,2.4553]
[1718169831544,8.44,150.71,150.68,2.4554]
[1718169832132,8.44,150.72,150.69,2.4553]
[1718169832445,10.8947,150.73,150.69,2.4553]
[1718169832625,2.4551,150.71,150.64,16.5679]
[1718169832826,8.44,150.69,150.67,2.4556]
[1718169833141,8.44,150.7,150.67,2.4556]
[1718169833348,10.895,150.71,150.67,2.4556]
[1718169833641,10.895,150.71,150.66,2.4558]
[1718169833830,8.44,150.7,150.66,2.4558]
[1718169834229,8.44,150.7,150.6,15.0848]
[1718169834230,2.4563,150.64,150.6,15.0848]
[1718169834435,8.44,150.64,150.61,2.4565]
[1718169834629,8.44,150.65,150.61,2.4565]
[1718169834837,8.44,150.65,150.62,2.4564]
[1718169835551,8.44,150.65,150.61,2.4565]
[1718169835847,8.44,150.65,150.62,2.4565]
[1718169836825,8.44,150.65,150.61,2.4566]
[1718169837145,8.44,150.64,150.62,2.4565]
[1718169839769,8.44,150.64,150.61,2.4565]
[1718169840568,8.44,150.64,150.62,2.4564]
[1718169840766,8.44,150.64,150.59,11.0704]
[1718169840767,19.91,150.7,150.59,6.1566]
[1718169840947,35.1825,150.72,150.66,4.9115]
[1718169841265,8.44,150.7,150.64,13.3523]
[1718169841445,8.44,150.68,150.62,39.5153]
[1718169842167,8.44,150.68,150.64,2.456]
[1718169842465,8.44,150.7,150.64,13.3522]
[1718169842683,8.44,150.67,150.64,2.456]
[1718169842966,8.44,150.65,150.62,2.4564]
[1718169843137,8.44,150.65,150.61,2.4566]
[1718169843342,2.4559,150.66,150.61,2.4566]
[1718169843343,8.44,150.64,150.61,2.4566]
[1718169843641,8.44,150.64,150.59,6.1566]
[1718169844051,8.44,150.64,150.6,2.4567]
[1718169844247,8.44,150.64,150.59,6.1566]
[1718169844659,19.91,150.64,150.58,0.8623484]
[1718169844839,8.44,150.62,150.59,2.4568]
[1718169845040,8.44,150.62,150.6,2.4568]
[1718169846244,8.44,150.62,150.59,2.4569]
[1718169846559,8.44,150.61,150.59,2.4569]
[1718169846862,8.44,150.61,150.6,2.4568]
[1718169847174,8.44,150.61,150.58,0.8623484]
[1718169847354,8.44,150.61,150.58,3.3194484]
[1718169847763,35.7185,150.64,150.58,0.8623484]
[1718169847970,8.44,150.6,150.58,0.8623484]
[1718169848273,8.44,150.59,150.58,0.8623484]
[1718169848439,10.897,150.59,150.58,0.8623484]
[1718169848775,8.44,150.59,150.58,0.8623484]
[1718169851381,30.977,150.59,150.58,0.8623484]
[1718169851567,36.401,150.59,150.58,0.8623484]
[1718169851768,31.487,150.59,150.58,0.8623484]
[1718169853660,36.401,150.59,150.58,0.8623484]
[1718169854274,19.91,150.57,150.52,2.458]
[1718169854469,8.44,150.54,150.52,2.458]
[1718169856669,8.44,150.53,150.51,2.4582]
[1718169857056,8.44,150.53,150.52,2.4581]
[1718169857253,2.4573,150.57,150.53,2.4579]
[1718169857613,8.44,150.55,150.53,2.4579]
[1718169857865,8.44,150.54,150.51,2.4582]
[1718169858068,8.44,150.53,150.51,2.4582]
[1718169859047,8.44,150.53,150.5,2.4583]
[1718169859248,8.44,150.53,150.51,2.4582]
[1718169860179,8.44,150.53,150.5,2.4583]
[1718169860472,8.44,150.53,150.51,2.4583]
[1718169860669,8.44,150.53,150.5,2.4584]
[1718169862383,8.44,150.52,150.5,2.4584]
[1718169862553,19.91,150.53,150.45,7.3776]
[1718169862874,19.91,150.53,150.47,2.4588]
[1718169862875,8.44,150.48,150.47,2.4588]
[1718169863053,8.44,150.48,150.47,2.4589]
[1718169863258,8.44,150.49,150.47,2.4589]
[1718169864270,8.44,150.48,150.43,0.8623484]
[1718169864682,6.8595,150.54,150.48,2.4586]
[1718169864864,8.44,150.5,150.47,2.4588]
[1718169865076,8.44,150.5,150.48,2.4587]
[1718169865385,8.44,150.52,150.5,2.4583]
[1718169865570,8.44,150.51,150.49,2.4585]
[1718169866165,8.44,150.51,150.48,2.4586]
[1718169866475,8.44,150.5,150.47,2.4588]
[1718169866683,8.44,150.51,150.49,2.4585]
[1718169867357,8.44,150.5,150.45,7.3774]
[1718169867594,8.44,150.5,150.47,2.4588]
[1718169868359,8.44,150.5,150.48,2.4587]
[1718169868683,8.44,150.5,150.49,2.4586]
[1718169868888,27.8511,150.57,150.46,17.2135]
[1718169868889,40.3887,150.57,150.5,2.4583]
[1718169869097,8.44,150.52,150.5,2.4583]
[1718169869587,8.44,150.52,150.49,2.4585]
[1718169869976,8.44,150.52,150.46,29.2922]
[1718169869977,53.67,150.56,150.46,24.3742]
[1718169870293,8.44,150.52,150.5,2.4583]
[1718169870471,8.44,150.52,150.49,2.4585]
[1718169871674,8.44,150.52,150.46,15.9342]
[1718169871875,8.44,150.52,150.49,2.4585]
[1718169872277,2.4579,150.53,150.49,2.4585]
[1718169872477,8.44,150.52,150.49,2.4585]
[1718169873396,8.44,150.51,150.49,2.4585]
[1718169873592,8.44,150.51,150.48,2.4587]
[1718169875390,2.4579,150.54,150.5,2.4584]
[1718169875589,8.44,150.52,150.5,2.4584]
[1718169876196,8.44,150.52,150.49,2.4585]
[1718169876505,8.44,150.52,150.47,4.9178]
[1718169876685,8.44,150.51,150.48,2.4586]
[1718169877785,8.44,150.52,150.5,2.4584]
[1718169878307,8.44,150.53,150.5,2.4584]
[1718169878807,8.44,150.53,150.51,2.4583]
[1718169879310,8.44,150.53,150.5,2.4583]
[1718169880598,2.4576,150.55,150.51,2.4582]
[1718169880801,8.44,150.54,150.51,2.4582]
[1718169882190,10.8978,150.54,150.5,2.4583]
[1718169883793,8.44,150.53,150.5,2.4583]
[1718169885599,10.898,150.53,150.49,2.4585]
[1718169886123,8.44,150.52,150.49,2.4585]
[1718169886927,12.2847,150.6,150.51,13.3565]
[1718169887138,16.5219,150.62,150.55,4.9153]
[1718169887336,10.8967,150.61,150.55,8.44]
[1718169887498,10.8967,150.61,150.57,2.4573]
[1718169887819,16.5219,150.62,150.58,2.4571]
[1718169887820,8.44,150.6,150.58,2.4571]
[1718169887989,8.44,150.6,150.56,2.4574]
[1718169888194,8.44,150.6,150.57,2.4573]
[1718169888389,2.4565,150.62,150.58,2.457]
[1718169888707,10.8965,150.62,150.58,2.457]
[1718169889122,2.4565,150.62,150.58,2.457]
[1718169889296,10.8965,150.62,150.58,2.457]
[1718169890016,10.8965,150.62,150.54,22.1193]
[1718169890017,2.4567,150.61,150.57,2.4572]
[1718169890401,2.4568,150.6,150.56,2.4574]
[1718169891712,10.8968,150.6,150.56,2.4574]
[1718169892601,2.4568,150.6,150.56,2.4574]
[1718169893741,2.457,150.59,150.55,2.4575]
[1718169893909,10.897,150.59,150.55,2.4575]
[1718169894099,8.44,150.59,150.56,2.4574]
[1718169894605,24.8229,150.63,150.53,6.1526]
[1718169894920,8.44,150.59,150.56,2.4574]
[1718169895416,8.44,150.59,150.54,4.9154]
[1718169895417,10.897,150.59,150.55,2.4575]
[1718169895624,8.44,150.58,150.55,2.4575]
[1718169896125,2.457,150.59,150.55,2.4575]
[1718169896424,8.44,150.58,150.55,2.4575]
[1718169897221,10.8972,150.58,150.54,2.4577]
[1718169897730,8.44,150.57,150.55,2.4576]
[1718169899000,8.44,150.57,150.56,2.4574]
[1718169899228,8.44,150.57,150.55,2.4575]
[1718169900423,8.44,150.57,150.53,6.1526]
[1718169900601,8.44,150.57,150.55,2.4576]
[1718169901542,8.44,150.57,150.54,2.4577]
[1718169902600,8.44,150.57,150.55,2.4576]
[1718169902932,8.44,150.57,150.54,2.4577]
[1718169903428,8.44,150.57,150.55,2.4576]
[1718169903616,8.44,150.57,150.56,2.4574]
[1718169903820,8.44,150.58,150.56,2.4574]
[1718169905229,8.44,150.59,150.56,2.4574]
[1718169905630,10.897,150.59,150.55,2.4575]
[1718169905810,8.44,150.58,150.55,2.4575]
[1718169906525,10.897,150.59,150.55,2.4575]
[1718169906730,2.4571,150.58,150.54,2.4577]
[1718169906925,10.8971,150.58,150.54,2.4577]
[1718169907312,10.8975,150.56,150.52,18.793]
[1718169908209,10.8975,150.56,150.53,2.4579]
[1718169908747,10.8975,150.56,150.52,18.793]
[1718169909107,10.8975,150.56,150.53,2.4579]
[1718169909525,10.8975,150.56,150.52,2.458]
[1718169910237,10.8975,150.56,150.53,2.4579]
[1718169910526,8.44,150.55,150.53,2.4579]
[1718169911643,8.44,150.55,150.52,2.458]
[1718169912411,2.4575,150.56,150.5,2.4584]
[1718169912412,8.44,150.53,150.5,2.4584]
[1718169912730,10.898,150.53,150.5,2.4584]
[1718169913115,8.44,150.51,150.45,6.5871]
[1718169913443,8.44,150.51,150.48,2.4587]
[1718169913933,8.44,150.51,150.49,2.4586]
[1718169915622,2.458,150.53,150.49,2.4586]
[1718169915835,8.44,150.51,150.49,2.4586]
[1718169916559,53.67,150.56,150.47,17.2121]
[1718169916713,8.44,150.53,150.5,2.4583]
[1718169917043,10.8979,150.53,150.5,2.4583]
[1718169917217,8.44,150.52,150.5,2.4583]
[1718169917615,8.44,150.52,150.49,2.4585]
[1718169918143,10.8981,150.52,150.49,2.4585]
[1718169918356,8.44,150.51,150.46,4.918]
[1718169918639,8.44,150.51,150.48,2.4587]
[1718169922437,10.8984,150.51,150.47,2.4589]
[1718169922653,8.44,150.49,150.46,2.4591]
[1718169923537,24.8263,150.52,150.46,2.4591]
[1718169923538,8.44,150.48,150.46,2.4591]
[1718169924517,8.44,150.48,150.47,2.4589]
[1718169924716,8.44,150.48,150.46,2.459]
[1718169925036,8.44,150.49,150.46,2.459]
[1718169925430,2.4586,150.5,150.46,2.459]
[1718169925431,8.44,150.48,150.46,2.459]
[1718169925823,8.44,150.49,150.46,2.459]
[1718169926340,10.8986,150.49,150.46,2.459]